Cogmind - Beta 13 @@@ ROGUE MODE // 2024.06.04 @ 14:23:15 Player: Trantor Result: Self-destructed Performance ------------- Evolutions (1) 500 Regions Visited (3) 600 Robots Destroyed (42) 210 Value Destroyed (1196) 1196 Prototype IDs (8) 160 Alien Tech Used (0) 0 Bonus (0) 0 TOTAL SCORE: 2666 Bonus ------- None Cogmind --------- Core Integrity 339/400 Matter 300/300 Energy 140/140 System Corruption 0% Temperature Cool (0) Movement Walking (120) Location -9/Storage Parts ------- > --- POWER (1) -------- Light Deuterium Engine > --- PROPULSION (3) --- Improved Aluminum Leg Improved Aluminum Leg Improved Aluminum Leg > --- UTILITY (3) ------ Improved Heat Sink Large Storage Unit Structural Scanner > --- WEAPON (2) ------- Particle Cannon Advanced Beam Cannon > --- INVENTORY (15) --- Light Deuterium Engine Improved Aluminum Leg Medium Storage Unit Improved Targeting Computer Medium Armor Plating Hardened Light Armor Plating Hardened Light Armor Plating Shield Generator Hacking Suite Particle Cannon Particle Cannon Rocket Launcher Rocket Launcher Rocket Launcher Heavy Mace Peak State ------------ > --- POWER ------------ Light Deuterium Engine > --- PROPULSION ------- Improved Aluminum Leg Improved Aluminum Leg Improved Aluminum Leg > --- UTILITY ---------- Improved Heat Sink Large Storage Unit Hardened Light Armor Plating > --- WEAPON ----------- Particle Cannon Particle Cannon > --- INVENTORY -------- Light Deuterium Engine Improved Aluminum Leg Improved Aluminum Leg Improved Aluminum Leg Medium Storage Unit Structural Scanner Hardened Light Armor Plating Hardened Light Armor Plating Particle Cannon Particle Cannon Rocket Launcher Rocket Launcher Rocket Launcher Rocket Launcher Heavy Mace [Rating: 22] Favorites ----------- Power Light Deuterium Engine Engine Light Deuterium Engine Power Core Light Nuclear Core Propulsion Improved Aluminum Leg Leg Improved Aluminum Leg Wheel Wheel Flight Unit Improved Flight Unit Utility Improved Heat Sink Device Improved Heat Sink Storage Large Storage Unit Protection Hardened Light Armor Plating Weapon Particle Cannon Energy Gun Small Laser Energy Cannon Particle Cannon Ballistic Gun Assault Rifle Launcher Rocket Launcher Build | -11 -10 -9 -9 ------- Run | Yrd Mat Mat Sto Slots Evolved 2 | . . 2 . Power . | . . . . Propulsion 1 | . . 1 . Utility 1 | . . 1 . Weapon . | . . . . Parts Attached 40 | . 15 25 . Power 6 | . 1 5 . Engine 5 | . . 5 . Core 1 | . 1 . . Reactor . | . . . . Propulsion 14 | . 5 9 . Treads . | . . . . Leg 12 | . 4 8 . Wheel 1 | . 1 . . Hover . | . . . . Flight 1 | . . 1 . Utility 10 | . 6 4 . Device 6 | . 4 2 . Storage 2 | . 2 . . Processor . | . . . . Hackware . | . . . . Protection 2 | . . 2 . Artifact . | . . . . Weapon 10 | . 3 7 . Energy Gun 1 | . 1 . . Energy Cannon 7 | . 2 5 . Ballistic Gun . | . . . . Ballistic Cannon . | . . . . Launcher 2 | . . 2 . Special Weapon . | . . . . Impact Weapon . | . . . . Slashing Weapon . | . . . . Piercing Weapon . | . . . . Special Melee Weapon . | . . . . Unidentified Prototypes 3 | . . 3 . Parts Lost 4 | . 1 3 . Power 1 | . . 1 . Propulsion 3 | . 1 2 . Utility . | . . . . Weapon . | . . . . Highest Loss Streak 2 | . 1 2 . To Critical Strikes . | . . . . Average Slot Usage (%) 98 | . 93 99 100 Engine 8 | . 8 8 11 Core 2 | . 5 2 . Leg 31 | . 27 32 33 Device 11 | . 9 11 22 Storage 11 | . 14 11 11 Protection 7 | . . 9 . Energy Gun 2 | . 12 . . Energy Cannon 17 | . 3 21 22 Ballistic Gun 2 | . 12 . . Naked Turns . | . . . . Heaviest Build 42 | 13 34 42 35 Greatest Support 39 | 20 26 39 39 Greatest Overweight (x) 3 | . 3 1 . Average Overweight (x) . | . . . . Largest Inventory Capacity 15 | . 15 15 15 Average Capacity 13 | . 9 15 15 Most Carried 15 | . 15 15 15 Average Carried 12 | . 8 14 15 Final Capacity 15 | 8 15 15 15 Final Carried 15 | 6 15 15 15 Class Distribution -------------------- 100% | Mutant Dominant Class ---------------- Mutant | -10/Materials Mutant | -9/Materials Mutant | -9/Storage Resources | -11 -10 -9 -9 ----------- Run | Yrd Mat Mat Sto Matter Collected 796 | 200 270 326 . Remotely 64 | . 64 . . Salvage Created 1507 | . 334 1173 . Parts 97 | . 13 84 . Haulers Intercepted 3 | . . 3 . Recyclers Shooed . | . . . . Parts Field Recycled . | . . . . Retrieved Matter . | . . . . Parts Self-Destructed . | . . . . Prevented . | . . . . Kills | -11 -10 -9 -9 ------- Run | Yrd Mat Mat Sto Combat Hostiles Destroyed 33 | . 7 26 . Guns 7 | . 7 . . Cannons 20 | . . 20 . AOE 5 | . . 5 . Classes Destroyed 8 | . 2 6 . Worker 3 | . . 3 . Hauler 3 | . . 3 . Operator 3 | . 1 2 . Swarmer 6 | . . 6 . Grunt 18 | . 7 11 . Brawler 1 | . . 1 . Duelist 1 | . . 1 . Sentry 7 | . . 7 . Best Kill Streak 5 | . 3 5 . Combat Bots Only 3 | . 3 3 . Max Kills in Single Turn 2 | . 1 2 . Gunslinging . | . . . . Exploded 1 | . . 1 . Melee . | . . . . Uniques/NPCs Destroyed . | . . . . Combat | -11 -10 -9 -9 -------- Run | Yrd Mat Mat Sto Hostile Shots Fired 172 | . 61 99 12 Missed 52 | . 14 34 4 Damage Taken 1362 | . 575 727 60 Core 167 | . 106 55 6 Absorbed by Shields . | . . . . Core Remaining (%) 78 | 100 57 . . Volleys Fired 121 | . 45 69 7 Largest 2 | . 2 2 1 Hottest 136 | . 70 136 68 Shots Fired 224 | . 88 129 7 Gun 88 | . 88 . . Cannon 130 | . . 123 7 Launcher 6 | . . 6 . Special . | . . . . Kinetic 45 | . 45 . . Thermal 173 | . 43 123 7 Explosive 6 | . . 6 . Electromagnetic . | . . . . Robot Hit Streak 20 | . 11 20 2 Robot Miss Streak 3 | . 3 3 2 Penetration Max . | . . . . Secondary Targets 1 | . 1 . . Max Gunslinging Chain 1 | . 1 . . Shots Hit Robots 143 | . 60 80 3 Core Hits 59 | . 19 40 . Critical Kills 1 | . . 1 . Critical Parts Destroyed . | . . . . Critical Strikes 3 | . 2 1 . Burn 2 | . 2 . . Meltdown 1 | . . 1 . Melee Attacks . | . . . . Impact . | . . . . Slashing . | . . . . Piercing . | . . . . Sneak Attacks . | . . . . Combat Hostiles . | . . . . Follow-up Attacks . | . . . . Damage Inflicted 3142 | . 770 2305 67 Guns 770 | . 770 . . Cannons 1891 | . . 1824 67 Explosions 481 | . . 481 . Melee . | . . . . Ramming . | . . . . Kinetic 412 | . 412 . . Thermal 2249 | . 358 1824 67 Explosive 481 | . . 481 . Electromagnetic . | . . . . Impact . | . . . . Slashing . | . . . . Piercing . | . . . . Highest Corruption 2 | . 2 . . Average Corruption 2 | . 2 . . Corruption Purged . | . . . . Corruption Blocked . | . . . . Effects 7 | . 7 . . Message Errors 2 | . 2 . . Matter Fused 1 | . 1 . . Data Loss (minor) 2 | . 2 . . Weapon Failures 2 | . 2 . . Overload Shots . | . . . . Overflow Damage 58 | . . 56 2 Projectiles 58 | . . 56 2 Explosions . | . . . . Melee . | . . . . Knockbacks . | . . . . Impact . | . . . . Kinetic . | . . . . Secondary . | . . . . Self-Inflicted Damage . | . . . . Shots . | . . . . Rammed . | . . . . Targets Rammed . | . . . . Kicked . | . . . . Crushed . | . . . . Highest Temperature 319 | . 237 319 . Average Temperature 81 | . 59 90 . Received Heat Transfer 471 | . 318 147 6 Effects 5 | . . 5 . Energy Bleed 2 | . . 2 . Interference 3 | . . 3 . Siege Activations . | . . . . Robots Corrupted . | . . . . Combat Hostiles . | . . . . Parts Fried . | . . . . Impact Corruptions . | . . . . Robots Melted 1 | . . 1 . Combat Hostiles 1 | . . 1 . Parts Melted 8 | . 2 6 . Heat Transferred 4370 | . 1114 3145 111 Parts Sabotaged . | . . . . Parts Stolen . | . . . . Parts Stripped . | . . . . Power Chain Reactions . | . . . . Alert | -11 -10 -9 -9 ------- Run | Yrd Mat Mat Sto Peak Influence 397 | . 155 397 217 Initial 156 | . . 65 156 Average 202 | . 76 247 183 Maximum Alert Level 1 | . . 1 1 Low Security (%) 55 | . 100 38 80 Level 1 44 | . . 61 19 Level 2 . | . . . . Level 3 . | . . . . Level 4 . | . . . . Level 5 . | . . . . High Security . | . . . . Max Security . | . . . . Squads Dispatched 7 | . 3 1 3 Investigation 2 | . . . 2 Extermination . | . . . . Reinforcement 5 | . 3 1 1 Assault . | . . . . Garrison . | . . . . Intercept . | . . . . Searches Triggered . | . . . . Construction Impeded . | . . . . Haulers Reinforced . | . . . . Active Scanning Responses . | . . . . Cargo Convoy Interrupts . | . . . . Stealth | -11 -10 -9 -9 --------- Run | Yrd Mat Mat Sto Distress Signals 8 | . 1 6 1 Communications Jammed . | . . . . Distress Signals . | . . . . Times Spotted 80 | . 16 56 8 Peak Tracking Total 7 | . 3 7 7 Tactical Retreats 2 | . . 2 . Traps | -11 -10 -9 -9 ------- Run | Yrd Mat Mat Sto Traps Triggered 2 | . 1 1 . Indirectly . | . . . . Trap Hack Attempts . | . . . . Triggered . | . . . . Disarmed . | . . . . Reprogrammed . | . . . . Reused . | . . . . Traps Extracted . | . . . . Installed . | . . . . Triggered . | . . . . Machines | -11 -10 -9 -9 ---------- Run | Yrd Mat Mat Sto Machines Disabled 3 | . . 2 1 Max in Single Turn 1 | . . 1 1 Machines Repaired . | . . . . Machines Dismantled . | . . . . Machines Sabotaged . | . . . . Overloaded Fab Kills . | . . . . Hacking | -11 -10 -9 -9 --------- Run | Yrd Mat Mat Sto Machines Accessed 15 | . 2 10 3 Terminals 13 | . 2 8 3 Fabricators . | . . . . Repair Stations 1 | . . 1 . Recycling Units . | . . . . Scanalyzers 1 | . . 1 . Garrison Access . | . . . . Total Hacks 48 | . 6 28 14 Successful 24 | . 2 16 6 Failed 23 | . 4 11 8 Catastrophic 2 | . 1 1 . Database Lockouts 1 | . . 1 . Manual 22 | . 2 16 4 Terminals 43 | . 6 23 14 Fabricators . | . . . . Repair Stations 3 | . . 3 . Recycling Units . | . . . . Scanalyzers 2 | . . 2 . Garrison Access . | . . . . Terminal Hacks 11 | . 1 8 2 Record 1 | . . 1 . Part Schematic 1 | . . . 1 Robot Analysis 3 | . . 3 . Prototype ID Bank 4 | . 1 3 . Terminal Index 1 | . . . 1 Unreport Threat 1 | . . 1 . Fabricator Hacks . | . . . . Repair Station Hacks 1 | . . 1 . Scan Component 1 | . . 1 . Recycling Unit Hacks . | . . . . Scanalyzer . | . . . . Garrison Access Hacks . | . . . . Unauthorized Hacks 12 | . 1 7 4 Terminals 12 | . 1 7 4 Assimilate 1 | . . . 1 Botnet 11 | . 1 7 3 Fabricators . | . . . . Repair Stations . | . . . . Recycling Units . | . . . . Scanalyzers . | . . . . Garrison Access . | . . . . Data Cores Recovered 1 | . . 1 . Used . | . . . . Hacking Detections 14 | . 2 9 3 Full Trace Events 3 | . . 1 2 Feedback Events . | . . . . Feedback Blocked . | . . . . Robot Schematics Acquired . | . . . . Robots Built . | . . . . Authchips . | . . . . Time . | . . . . Total Robot Build Rating . | . . . . Part Schematics Acquired 1 | . . . 1 Parts Built . | . . . . Authchips . | . . . . Time . | . . . . Total Part Build Rating . | . . . . Parts Repaired . | . . . . Time . | . . . . Parts Recycled . | . . . . Recycled Matter . | . . . . Retrieved Matter . | . . . . Retrieved Components . | . . . . Parts Scanalyzed . | . . . . Part Schematics Acquired . | . . . . Parts Damaged . | . . . . Bothacking | -11 -10 -9 -9 ------------ Run | Yrd Mat Mat Sto Used RIF Installer . | . . . . Robots Hacked . | . . . . Non-combat . | . . . . Combat . | . . . . Robot Hacks Applied . | . . . . Relay Couplers Released . | . . . . Fabnet Peak Effective % . | . . . . Robots Rewired . | . . . . Allies Hacked . | . . . . Hacks Repelled . | . . . . Allies | -11 -10 -9 -9 -------- Run | Yrd Mat Mat Sto Total Allies . | . . . . Largest Group . | . . . . Highest-Rated Group . | . . . . Highest-Rated Ally . | . . . . Total Orders . | . . . . Ally Attacks . | . . . . Total Damage . | . . . . Kills . | . . . . Allies Corrupted . | . . . . Allies Melted . | . . . . Intel | -11 -10 -9 -9 ------- Run | Yrd Mat Mat Sto Robot Analysis Total 3 | . . 3 . Derelict Logs Recovered . | . . . . Drone Launches . | . . . . Drone Recoveries . | . . . . Exploration | -11 -10 -9 -9 ------------- Run | Yrd Mat Mat Sto Turns Passed 3013 | . 747 2145 121 Spaces Moved 1606 | 1 441 1093 71 Core . | . . . . Treads . | . . . . Legs 1596 | 1 431 1093 71 Wheels 10 | . 10 . . Hover . | . . . . Flight . | . . . . Fastest Speed 120 | 120 120 120 120 Average Speed 147 | 120 124 158 120 Slowest Speed 190 | 120 190 190 120 Overloaded Moves . | . . . . Propulsion Burnouts . | . . . . Robots Hopped . | . . . . Cave-ins Triggered . | . . . . Exploration Rate (%) 38 | 2 54 83 16 Regions Visited 3 Branch Regions 1 Pre-discovered Areas . | . . . . Known Exits Taken . | . . . . Unknown Exits Taken 3 | 1 1 1 . Scrap Searched . | . . . . Spaces Dug . | . . . . Terrain Destroyed 22 | . . 22 . Melee . | . . . . Projectile . | . . . . AOE 22 | . . 22 . Terrain Rammed . | . . . . Walls Destroyed . | . . . . Machines Disabled . | . . . . Actions | -11 -10 -9 -9 --------- Run | Yrd Mat Mat Sto Total 2035 | . 556 1380 99 Wait 209 | . 21 167 21 Move 1603 | . 440 1092 71 Hop . | . . . . Pick Up 27 | . 17 10 . Fast Attach 15 | . 6 9 . Attach 7 | . . 7 . Detach 1 | . . 1 . Swap 18 | . 9 9 . Drop 34 | . 18 16 . Fire 121 | . 45 69 7 Melee . | . . . . Ram . | . . . . Kick . | . . . . Crush . | . . . . Escape Stasis . | . . . . Rewire . | . . . . Trap . | . . . . Miscellaneous . | . . . . Route ------- -11/Scrapyard -10/Materials (discovered 2 exits: *Mat x2) -9/Materials (discovered 4 exits: [*Mat x2] / [*Min] / *Sto) -9/Storage History --------- Turn | Location | Event 1 | -11/Scrapyard | Discovered new exit (range 0) 1 | -11/Scrapyard | Entered Materials 312 | -10/Materials | Build established: Mutant 316 | -10/Materials | Discovered new exit (range 5) 677 | -10/Materials | Discovered new exit (range 16) 748 | -10/Materials | Entered another Materials area 748 | -9/Materials | Evolved 2 slots: Propulsion x1, Utility x1 1444 | -9/Materials | Central database locked down 1451 | -9/Materials | Discovered new exit (range 16) 1847 | -9/Materials | Discovered new exit (range 11) 2334 | -9/Materials | Discovered new exit (range 5) 2660 | -9/Materials | Discovered new exit (range 11) 2893 | -9/Materials | Entered Storage 3014 | -9/Storage | Self-destructed Last Messages --------------- >>Trojan(Botnet) Trojan loaded successfully. Testing... Terminal linked with 1 system. Awaiting botnet instructions. 02990_ Connecting with Terminal... >>Trojan(Botnet) Trojan loaded successfully. Testing... Terminal linked with 2 systems. Awaiting botnet instructions. >>Schematic(Xenon Bombardment Thruster) Downloading schematic... Xenon Bombardment Thruster Rating: 4 Schematic downloaded. 02990_ ALERT: Suspicious activity at Terminal S012. Dispatching Investigation squad. 02997_ W-16 Scout sends out distress signal. 03002_ Destroyed Flight Unit. Map ----- +----------------------------------------------------+ | ?????????????????????????????????????? | | ?????????????????????????????????????? | | ?????????????????????????????????????? | | ?????????????????????????????????????? | | ?????????????????????????????????????? | | ?????????????????????????????????????? | | ?????????????????????????????????????? | | ?????????????????????????????????????? | | ?????????????????????????????????????? | | ?????????????????????????????????????? | | ?????????????????????????????????????? | | ?????????????????????????????????????? | | ?????????????????????????????????????? | | ?????????????????????????????????????? | | ?????????????????????????????????????? | | ?????????????????????????????????????? | | ?????????????????????????????????????? | | ?????????????????????????????????????? | | ?????????????????????????????#### ##?? | | ???????????????????????########## ##?? | | ???????????????????????########T#+##?? | | ???????????????????## ?## s ##?? | | ????????????? ####### ### s ##?? | | ????????? ####### ### """"##?? | | ????????? # """"##?? | | ????????? w s@ """"##?? | | ????????? b g # """"##?? | | ???????????############ # ##?? | | ??????????? ########## # ##?? | | ????????????????????? # ####"T"#+###?? | | ????????????????????? # ####"""# ###?? | | ????????????????????? # ######## ##??? | | ????????????????????? + ###?? | | ??????????????? # ####? | | ???????????????##+##### T """ ""##? | | ???????????????## """ T"##? | | ???????????????## """ ""##? | | ???????????????## ####? | | ???????????????## ####? | | ???????????????## ##### #####+##??? | | ???????????????## ##### ### ??? | | ???????????????## ##?## ##????????? | | ???????????????## ##?## ##????????? | | ?????????????#### ##### ##????????? | | ?????????????####+##+##### ##????????? | | ?????????????## ## ##????????? | | ?????????????## """"" ## ##????????? | | ?????????????## "[[[" ## ##????????? | | ????????????????"""" ## ##????????? | | ?????????????????"""" ## ##????????? | +----------------------------------------------------+ Best States ------------- Heat Dissipation 42 Energy Generation 14 Energy Capacity 280 Matter Stores 300 Matter Capacity 300 Sight Range 16 Terrain Scan Density 10 Armor Coverage 225 Evasion (%) 55 Item Schematics ----------------- Xenon Bombardment Thruster | -9/Storage | Hacked Robot Schematics ------------------ None Fabricated ------------ Nothing Alien Tech Used ----------------- None Achievements -------------- None Challenges ------------ None Game ------ Seed ThermalProjectionRouter Manual? 0 Play Time 00:30:25 Cumulative 293.4 hours Start 2024.06.04 @ 13:54:40 End 2024.06.04 @ 14:23:15 Sessions 1 Manual Loads 0 Difficulty Rogue Special Mode None Game No. 171 Rogue 127 Adventurer 44 Explorer 0 Win Type - Total 2 Types 2/0/0/0/0/0/0/0/0 Lore% 58 Gallery% 63 Achievement% 58 Wizard Run 0 Options --------- Layout 2 ASCII 0 Keyboard 1 Movement Vi Keybinds 1 Fullscreen 2 Font 24/Smallcaps Map View 50x44 Zoom Use 0% Tactical HUD 1 Map Filters NONE Filters NONE Steam 1 RUN: ba5cc8b5-7df8-4c3f-b26f-225d63e2193d